[Event "AZE-ch Men 2019"]
[Site "Baku"]
[Date "2019.01.16"]
[Round "1"]
[White "Gadimbayli, Abdulla"]
[Black "Ilyasli, Ughur"]
[Result "1-0"]
[ECO "C67"]
[WhiteElo "2409"]
[BlackElo "2148"]
[Annotator "NA"]
[PlyCount "101"]
[EventDate "2019.01.16"]
[EventType "swiss"]
[EventCountry "AZE"]
[SourceTitle "playchess.com"]
[Source "ChessBase"]
[SourceQuality "1"]
[TimeControl "40/5400+30:1800+30"]

1. e4 {[%emt 0:00:00]} e5 {[%emt 0:00:00]} 2. Nf3 {[%emt 0:00:26]} Nc6 {[%emt 0:00:00]} 3. Bb5 {[%emt 0:00:18]} Nf6 {[%emt 0:00:16]} 4. O-O {[%emt 0:00:41]} Nxe4 {[%emt 0:00:08]} 5. d4 {[%emt 0:00:07]} Nd6 {[%emt 0:02:23]} 6. dxe5 {[%emt 0:00:12]} Nxb5 {[%emt 0:06:03]} 7. a4 {[%emt 0:00:05]} d6 {[%emt 0:08:19]} 8. e6 {[%emt 0:16:13]} Bxe6 {[%emt 0:26:51]} 9. axb5 {[%emt 0:00:21]} Nb8 {[%emt 0:11:32]} 10. Nd4 {[%emt 0:14:39]} Be7 {[%emt 0:05:20]} 11. Nxe6 {[%emt 0:14:16]} fxe6 {[%emt 0:00:06]} 12. Qg4 {[%emt 0:01:33]} O-O {[%emt 0:02:19]} 13. Qxe6+ {[%emt 0:00:18]} Kh8 {[%emt 0:01:37]} 14. Be3 {[%emt 0:06:43]} Bf6 {[%emt 0:14:13]} 15. Rxa7 {[%emt 0:09:15]} Rxa7 {[%emt 0:09:10]} 16. Bxa7 {[%emt 0:00:18]} b6 {[%emt 0:00:46]} 17. Bxb8 {[%emt 0:01:50]} Qxb8 {[%emt 0:00:01]} 18. c3 {[%emt 0:02:36]} Re8 {[%emt 0:05:25]} 19. Qc4 {[%emt 0:01:50]} Re5 {[%emt 0:01:07]} 20. Nd2 {[%emt 0:05:49]} Rc5 {[%emt 0:02:04]} 21. Qe2 {[%emt 0:00:10]} Re5 {[%emt 0:00:06]} 22. Qd3 {[%emt 0:04:49]} Qe8 {[%emt 0:00:05]} 23. c4 {[%emt 0:00:05]} Re2 {[%emt 0:02:56]} 24. b3 {[%emt 0:00:13]} g6 {[%emt 0:00:21]} 25. Nf3 {[%emt 0:04:41]} Qe6 {[%emt 0:00:22]} 26. Rd1 {[%emt 0:02:55]} Kg7 {[%emt 0:00:34]} 27. Kf1 {[%emt 0:02:14]} Re4 {[%emt 0:00:01]} 28. Qd5 {[%emt 0:03:12]} Qxd5 {[%emt 0:00:12]} 29. Rxd5 {[%emt 0:00:06]} Re8 {[%emt 0:00:10]} 30. Rd3 {[%emt 0:02:56]} Kf7 {[%emt 0:00:40]} 31. g3 {[%emt 0:00:08]} Ra8 {[%emt 0:00:16]} 32. Nd2 {[%emt 0:00:46]} Ke6 {[%emt 0:00:41]} 33. Re3+ {[%emt 0:00:23]} Kd7 {[%emt 0:00:10]} 34. Ne4 {[%emt 0:01:24]} Be7 {[%emt 0:01:38]} 35. Nc3 {[%emt 0:00:25]} Bd8 {[%emt 0:00:42]} 36. Nd5 {[%emt 0:00:49]} c6 {[%emt 0:00:38]} 37. bxc6+ {[%emt 0:00:40]} Kxc6 {[%emt 0:00:01]} 38. Re8 {[%emt 0:00:15]} Ra1+ {[%emt 0:00:17]} 39. Kg2 {[%emt 0:00:32]} Kd7 {[%emt 0:01:16]} 40. Rh8 {[%emt 0:00:00]} Rb1 {[%emt 0:00:00]} 41. Rxh7+ {[%emt 0:00:59]} Kc6 {[%emt 0:00:20]} 42. Rh8 {[%emt 0:00:45]} Kd7 {[%emt 0:00:44]} 43. b4 {[%emt 0:00:09]} Rc1 {[%emt 0:02:16]} 44. Rh7+ {[%emt 0:01:52]} Kc6 {[%emt 0:01:00]} 45. b5+ {[%emt 0:00:27]} Kc5 {[%emt 0:00:17]} 46. Rh8 {[%emt 0:00:14]} Bg5 {[%emt 0:06:48]} 47. Rc8+ {[%emt 0:00:08]} Kd4 {[%emt 0:00:01]} 48. Nxb6 {[%emt 0:00:07]} d5 {[%emt 0:03:42]} 49. Nxd5 {[%emt 0:00:30]} Rxc4 {[%emt 0:00:28]} 50. Rxc4+ {[%emt 0:00:05]} Kxc4 {[%emt 0:00:04]} 51. b6 {[%emt 0:00:11]} 1-0

[Event "AZE-ch Men 2019"]
[Site "Baku"]
[Date "2019.01.16"]
[Round "1"]
[White "Shahaliyev, Ismayil"]
[Black "Isgandarov, Shahriyar"]
[Result "1-0"]
[ECO "B31"]
[WhiteElo "2389"]
[BlackElo "2113"]
[Annotator "NA"]
[PlyCount "107"]
[EventDate "2019.01.16"]
[EventType "swiss"]
[EventCountry "AZE"]
[SourceTitle "playchess.com"]
[Source "ChessBase"]
[SourceQuality "1"]
[TimeControl "40/5400+30:1800+30"]

1. e4 {[%emt 0:04:23]} c5 {[%emt 0:00:00]} 2. Nf3 {[%emt 0:00:05]} Nc6 {[%emt 0:00:00]} 3. Bb5 {[%emt 0:00:07]} g6 {[%emt 0:01:02]} 4. Bxc6 {[%emt 0:00:07]} bxc6 {[%emt 0:00:17]} 5. O-O {[%emt 0:00:07]} Bg7 {[%emt 0:00:38]} 6. Re1 {[%emt 0:00:07]} Nf6 {[%emt 0:08:57]} 7. e5 {[%emt 0:00:14]} Nd5 {[%emt 0:00:31]} 8. c4 {[%emt 0:00:08]} Nc7 {[%emt 0:02:03]} 9. d4 {[%emt 0:00:05]} cxd4 {[%emt 0:01:47]} 10. Qxd4 {[%emt 0:00:07]} O-O {[%emt 0:10:38]} 11. Qh4 {[%emt 0:01:30] B31: Sicilian: 2...Nc6 3 Bb5 g6} f6 {[%emt 0:11:18]} 12. exf6 {[%emt 0:14:51]} (12. Nc3 Ne6 13. Ne4 fxe5 14. Nfg5 Nxg5 15. Bxg5 Qb6 16. c5 Qxb2 17. Rad1 d5 18. cxd6 exd6 19. Rxd6 Bf5 20. Nf6+ Bxf6 21. Bxf6 Rab8 22. Qc4+ Rf7 23. Red1 Qb1 24. h3 {1-0 (24) Van Wely,L (2667)-Hou,Y (2673) Wijk aan Zee 2015}) 12... exf6 {[%emt 0:07:21]} 13. Bh6 {[%emt 0:09:04]} Ne6 {[%emt 0:03:21]} 14. Bxg7 {[%emt 0:01:20]} Kxg7 {[%emt 0:01:30]} 15. Nc3 {[%emt 0:00:07]} f5 {[%emt 0:04:05]} 16. Qxd8 {[%emt 0:04:08]} Rxd8 {[%emt 0:00:09]} 17. Rad1 {[%emt 0:00:05]} d6 {[%emt 0:04:53]} 18. Nd4 {[%emt 0:11:49]} Nxd4 {[%emt 0:02:34]} 19. Rxd4 {[%emt 0:00:08]} Kf6 $146 {[%emt 0:03:08]} 20. c5 {[%emt 0:11:59]} d5 {[%emt 0:05:20]} 21. f4 {[%emt 0:02:19]} Ba6 {[%emt 0:06:30]} 22. b3 {[%emt 0:04:42]} Re8 {[%emt 0:11:24]} 23. Rxe8 {[%emt 0:01:12]} Rxe8 {[%emt 0:00:07]} 24. Ra4 {[%emt 0:00:02]} Bd3 {[%emt 0:02:29]} 25. Kf2 {[%emt 0:00:08]} Re7 {[%emt 0:01:45]} 26. Rd4 {[%emt 0:07:01]} Ba6 {[%emt 0:00:49]} 27. Ra4 {[%emt 0:01:14]} Bd3 {[%emt 0:00:06]} 28. Rd4 {[%emt 0:00:06]} Ba6 {[%emt 0:00:05]} 29. g3 {[%emt 0:00:04]} h6 {[%emt 0:01:46]} 30. Ra4 {[%emt 0:08:40]} Bd3 {[%emt 0:00:13]} 31. Rd4 {[%emt 0:00:11]} Ba6 {[%emt 0:00:05]} 32. Rd1 {[%emt 0:00:05]} g5 {[%emt 0:03:01]} 33. Rd4 {[%emt 0:04:10]} g4 {[%emt 0:00:53]} 34. Ra4 {[%emt 0:04:07]} Bd3 {[%emt 0:00:27]} 35. Rd4 {[%emt 0:00:05]} Ba6 {[%emt 0:00:06]} 36. Rd1 {[%emt 0:00:46]} Re6 {[%emt 0:02:25]} 37. a4 {[%emt 0:01:16]} Re8 {[%emt 0:03:18]} 38. b4 {[%emt 0:01:08]} Bc4 {[%emt 0:02:45]} 39. b5 {[%emt 0:01:40]} cxb5 {[%emt 0:01:00]} 40. axb5 {[%emt 0:00:00]} Rb8 {[%emt 0:00:00]} 41. Ke3 {[%emt 0:10:36]} Bxb5 {[%emt 0:12:36]} 42. Rxd5 {[%emt 0:00:56]} Bc4 {[%emt 0:06:29]} 43. Rd7 {[%emt 0:10:15]} a5 $18 {[%emt 0:04:04]} 44. Kd4 {[%emt 0:04:09]} Be6 {[%emt 0:03:38]} 45. Nd5+ {[%emt 0:00:46]} Kg6 {[%emt 0:01:50]} 46. Re7 {[%emt 0:06:52]} Bf7 {[%emt 0:02:25]} 47. c6 {[%emt 0:01:26]} Bxd5 {[%emt 0:02:47]} 48. Kxd5 {[%emt 0:00:07]} Rb2 {[%emt 0:00:36]} 49. c7 {[%emt 0:00:26]} Rd2+ {[%emt 0:00:32]} 50. Ke6 {[%emt 0:00:26]} Rc2 {[%emt 0:00:37]} 51. Kd7 {[%emt 0:00:25]} Kf6 {[%emt 0:00:28]} 52. Re6+ {[%emt 0:00:33]} Kf7 {[%emt 0:00:01]} 53. Rc6 {[%emt 0:00:12]} Rd2+ {[%emt 0:00:32]} 54. Rd6 {[%emt 0:00:04]} 1-0

[Event "AZE-ch Men 2019"]
[Site "Baku"]
[Date "2019.01.16"]
[Round "1"]
[White "Zeynalov, Farid"]
[Black "Guliyev, Gasan"]
[Result "1-0"]
[ECO "A61"]
[WhiteElo "2344"]
[BlackElo "1997"]
[Annotator "NA"]
[PlyCount "56"]
[EventDate "2019.01.16"]
[EventType "swiss"]
[EventCountry "AZE"]
[SourceTitle "playchess.com"]
[Source "ChessBase"]
[SourceQuality "1"]
[TimeControl "40/5400+30:1800+30"]

1. d4 {[%emt 0:00:00]} e6 {[%emt 0:02:12]} 2. c4 {[%emt 0:00:00]} c5 {[%emt 0:03:47]} 3. d5 {[%emt 0:00:00]} exd5 {[%emt 0:00:03]} 4. cxd5 {[%emt 0:00:07]} d6 {[%emt 0:00:18]} 5. Nc3 {[%emt 0:00:10]} Nf6 {[%emt 0:00:23]} 6. Nf3 {[%emt 0:00:14]} g6 {[%emt 0:00:12]} 7. Bf4 {[%emt 0:00:52]} Bg7 {[%emt 0:00:44]} 8. Qa4+ {[%emt 0:00:24]} Bd7 {[%emt 0:06:57]} 9. Qb3 {[%emt 0:00:10]} Qc7 {[%emt 0:03:41]} 10. e4 {[%emt 0:00:06]} O-O {[%emt 0:01:18]} 11. Be2 {[%emt 0:00:04]} Nh5 {[%emt 0:21:41]} 12. Be3 {[%emt 0:00:08]} a6 {[%emt 0:02:27]} 13. a4 {[%emt 0:00:04]} Bg4 {[%emt 0:01:57]} 14. h3 {[%emt 0:00:53]} Bxf3 {[%emt 0:01:22]} 15. Bxf3 {[%emt 0:00:06]} Nd7 {[%emt 0:12:51]} 16. O-O {[%emt 0:01:46]} c4 {[%emt 0:09:23]} 17. Qb4 {[%emt 0:03:08]} Ne5 {[%emt 0:17:18]} 18. Be2 {[%emt 0:00:28]} Nd3 {[%emt 0:00:05]} 19. Bxd3 {[%emt 0:00:33]} cxd3 {[%emt 0:00:04]} 20. Rac1 {[%emt 0:06:30]} f5 {[%emt 0:09:42]} 21. exf5 {[%emt 0:06:38]} gxf5 {[%emt 0:00:09]} 22. Nb5 {[%emt 0:06:50]} Qe7 {[%emt 0:00:04]} 23. Nc7 {[%emt 0:02:29]} f4 {[%emt 0:01:41]} 24. Bd2 {[%emt 0:03:10]} a5 {[%emt 0:02:01]} 25. Qb6 {[%emt 0:08:52]} Qe2 {[%emt 0:01:18]} 26. Rcd1 {[%emt 0:01:06]} Nf6 {[%emt 0:00:41]} 27. Nxa8 {[%emt 0:00:40]} Rxa8 {[%emt 0:00:19]} 28. Qxd6 {[%emt 0:01:32]} Ne4 1-0

[Event "AZE-ch Men 2019"]
[Site "Baku"]
[Date "2019.01.16"]
[Round "1"]
[White "Jafarli, Babak"]
[Black "Abdulov, Orkhan"]
[Result "1/2-1/2"]
[ECO "E15"]
[WhiteElo "2128"]
[BlackElo "2395"]
[Annotator "NA"]
[PlyCount "48"]
[EventDate "2019.01.16"]
[EventType "swiss"]
[EventCountry "AZE"]
[SourceTitle "playchess.com"]
[Source "ChessBase"]
[SourceQuality "1"]
[TimeControl "40/5400+30:1800+30"]

1. d4 {[%emt 0:00:00]} Nf6 {[%emt 0:17:36]} 2. c4 {[%emt 0:00:00]} e6 {[%emt 0:00:33]} 3. Nf3 {[%emt 0:00:09]} b6 {[%emt 0:00:19]} 4. g3 {[%emt 0:00:16]} Bb7 {[%emt 0:00:02]} 5. Bg2 {[%emt 0:00:06]} c5 {[%emt 0:00:29]} 6. O-O {[%emt 0:01:54]} cxd4 {[%emt 0:02:11]} 7. Nxd4 {[%emt 0:00:41]} Bxg2 {[%emt 0:00:03]} 8. Kxg2 {[%emt 0:00:07]} Be7 {[%emt 0:05:08]} 9. Nd2 {[%emt 0:10:15]} O-O {[%emt 0:08:13]} 10. b3 {[%emt 0:08:11]} d5 {[%emt 0:04:09]} 11. Bb2 {[%emt 0:02:04]} dxc4 {[%emt 0:04:11]} 12. Nxc4 {[%emt 0:00:32]} Qd5+ {[%emt 0:00:09]} 13. Nf3 {[%emt 0:03:59]} Nc6 {[%emt 0:05:57]} 14. Rc1 {[%emt 0:11:05]} Qh5 {[%emt 0:06:08]} 15. Nce5 {[%emt 0:08:34]} Nxe5 {[%emt 0:08:50]} 16. Nxe5 {[%emt 0:01:41]} Rfd8 {[%emt 0:04:31]} 17. Qc2 {[%emt 0:00:41]} Rd5 {[%emt 0:06:53]} 18. Nc6 {[%emt 0:03:33]} Bf8 {[%emt 0:02:48]} 19. b4 {[%emt 0:02:21]} a5 {[%emt 0:03:32]} 20. e4 {[%emt 0:04:17]} Rd7 {[%emt 0:01:22]} 21. Ne5 {[%emt 0:01:22]} Rdd8 {[%emt 0:00:01]} 22. Nc6 {[%emt 0:00:06]} Rd7 {[%emt 0:00:04]} 23. Ne5 {[%emt 0:00:08]} Rdd8 {[%emt 0:00:00]} 24. Nc6 {[%emt 0:00:16]} Rd7 {[%emt 0:00:04]} 1/2-1/2

[Event "AZE-ch Men 2019"]
[Site "Baku"]
[Date "2019.01.16"]
[Round "1"]
[White "Ahadzade, Kanan"]
[Black "Davidov, Samir"]
[Result "1/2-1/2"]
[ECO "B00"]
[WhiteElo "2019"]
[BlackElo "2344"]
[Annotator "NA"]
[PlyCount "110"]
[EventDate "2019.01.16"]
[EventType "swiss"]
[EventCountry "AZE"]
[SourceTitle "playchess.com"]
[Source "ChessBase"]
[SourceQuality "1"]
[TimeControl "40/5400+30:1800+30"]

1. e4 {[%emt 0:00:00]} d6 {[%emt 0:05:52]} 2. d4 {[%emt 0:00:00]} Nf6 {[%emt 0:00:12]} 3. Bd3 {[%emt 0:00:24]} Nbd7 {[%emt 0:00:23]} 4. Nf3 {[%emt 0:00:41]} e5 {[%emt 0:00:53]} 5. c3 {[%emt 0:00:28]} h6 {[%emt 0:01:14]} 6. Nbd2 {[%emt 0:00:34]} c6 {[%emt 0:00:46]} 7. O-O {[%emt 0:02:08]} Qc7 {[%emt 0:01:11]} 8. Nc4 {[%emt 0:02:49]} Be7 {[%emt 0:01:31]} 9. Ne3 {[%emt 0:03:42]} g6 {[%emt 0:01:50]} 10. Bc2 {[%emt 0:02:02]} Nh5 {[%emt 0:07:04]} 11. dxe5 {[%emt 0:02:24]} dxe5 {[%emt 0:00:08]} 12. Ng4 {[%emt 0:00:15]} Bf8 {[%emt 0:04:35]} 13. b3 {[%emt 0:02:11]} Nhf6 {[%emt 0:00:45]} 14. Nfxe5 {[%emt 0:05:53]} Bg7 {[%emt 0:05:41]} 15. Nxf6+ {[%emt 0:04:13]} Bxf6 {[%emt 0:03:42]} 16. Nxd7 {[%emt 0:00:54]} Bxc3 {[%emt 0:02:17]} 17. Be3 {[%emt 0:02:11]} Qxd7 {[%emt 0:03:21]} 18. Qxd7+ {[%emt 0:01:38]} Bxd7 {[%emt 0:00:05]} 19. Rad1 {[%emt 0:00:07]} b6 {[%emt 0:00:06]} 20. Bd3 {[%emt 0:00:39]} Ke7 {[%emt 0:01:27]} 21. Bc4 {[%emt 0:04:26]} f6 {[%emt 0:06:55]} 22. Ba6 {[%emt 0:04:25]} Rab8 {[%emt 0:03:40]} 23. Rd3 {[%emt 0:02:15]} Be5 {[%emt 0:01:35]} 24. f4 {[%emt 0:07:12]} Bc7 {[%emt 0:00:07]} 25. Bd4 {[%emt 0:00:32]} Rhd8 {[%emt 0:01:06]} 26. b4 {[%emt 0:03:56]} Be6 {[%emt 0:04:49]} 27. a4 {[%emt 0:03:16]} Bd6 {[%emt 0:06:13]} 28. f5 {[%emt 0:01:50]} gxf5 {[%emt 0:03:36]} 29. exf5 {[%emt 0:00:17]} Bd5 {[%emt 0:00:05]} 30. Re3+ {[%emt 0:01:22]} Kf7 {[%emt 0:01:58]} 31. Be2 {[%emt 0:00:08]} Kg7 {[%emt 0:00:10]} 32. Rh3 {[%emt 0:05:05]} Rd7 {[%emt 0:13:44]} 33. Rh4 {[%emt 0:01:41]} Re8 {[%emt 0:02:08]} 34. Bf3 {[%emt 0:08:40]} Be5 {[%emt 0:06:15]} 35. Bxe5 {[%emt 0:06:20]} Rxe5 {[%emt 0:00:01]} 36. Rg4+ {[%emt 0:01:26]} Kf7 {[%emt 0:02:51]} 37. Bd1 {[%emt 0:03:49]} Kf8 {[%emt 0:01:04]} 38. Rd4 {[%emt 0:10:35]} Ke7 {[%emt 0:00:40]} 39. Rh4 {[%emt 0:02:31]} Kd8 {[%emt 0:00:51]} 40. Bf3 {[%emt 0:00:00]} Bxf3 {[%emt 0:00:00]} 41. Rxf3 {[%emt 0:01:05]} Rd1+ {[%emt 0:01:25]} 42. Kf2 {[%emt 0:01:04]} Rd2+ {[%emt 0:00:06]} 43. Kf1 {[%emt 0:00:41]} a5 {[%emt 0:01:34]} 44. bxa5 {[%emt 0:02:50]} Rxa5 {[%emt 0:02:24]} 45. Rff4 {[%emt 0:02:30]} Rc5 {[%emt 0:05:06]} 46. Rd4+ {[%emt 0:02:25]} Rxd4 {[%emt 0:00:06]} 47. Rxd4+ {[%emt 0:00:03]} Kc7 {[%emt 0:00:03]} 48. g4 {[%emt 0:00:34]} Rc1+ {[%emt 0:00:35]} 49. Kg2 {[%emt 0:00:14]} c5 {[%emt 0:00:10]} 50. Re4 {[%emt 0:00:20]} c4 {[%emt 0:00:13]} 51. Re7+ {[%emt 0:01:55]} Kd6 {[%emt 0:03:35]} 52. Re6+ {[%emt 0:00:18]} Kd7 {[%emt 0:00:05]} 53. Rxf6 {[%emt 0:11:54]} c3 {[%emt 0:14:47]} 54. Rf7+ {[%emt 0:00:16]} Kd6 {[%emt 0:01:58]} 55. Rf8 {[%emt 0:00:33]} Kd7 {[%emt 0:01:13]} 1/2-1/2

[Event "AZE-ch Men 2019"]
[Site "Baku"]
[Date "2019.01.16"]
[Round "1"]
[White "Allahverdiyeva, Ayan"]
[Black "Guliev, Sarhan"]
[Result "1/2-1/2"]
[ECO "C84"]
[WhiteElo "1975"]
[BlackElo "2342"]
[Annotator "NA"]
[PlyCount "74"]
[EventDate "2019.01.16"]
[EventType "swiss"]
[EventCountry "AZE"]
[SourceTitle "playchess.com"]
[Source "ChessBase"]
[SourceQuality "1"]
[TimeControl "40/5400+30:1800+30"]

1. e4 e5 {[%emt 0:08:24]} 2. Nf3 {[%emt 0:00:00]} Nc6 {[%emt 0:00:12]} 3. Bb5 {[%emt 0:00:00]} a6 {[%emt 0:00:10]} 4. Ba4 {[%emt 0:00:00]} Nf6 {[%emt 0:00:10]} 5. O-O {[%emt 0:00:03]} Be7 {[%emt 0:05:49]} 6. d3 {[%emt 0:00:56]} d6 {[%emt 0:00:27]} 7. Nc3 {[%emt 0:08:57]} O-O {[%emt 0:00:17]} 8. a3 {[%emt 0:01:39]} Bg4 {[%emt 0:16:02]} 9. h3 {[%emt 0:06:21]} Bxf3 {[%emt 0:04:59]} 10. Qxf3 {[%emt 0:00:04]} Nd4 {[%emt 0:00:09]} 11. Qd1 {[%emt 0:00:18]} b5 {[%emt 0:00:40]} 12. Bb3 {[%emt 0:00:12]} Nxb3 {[%emt 0:00:24]} 13. cxb3 {[%emt 0:00:04]} Nd7 {[%emt 0:05:21]} 14. b4 {[%emt 0:07:27]} Bg5 {[%emt 0:03:51]} 15. d4 {[%emt 0:01:20]} exd4 {[%emt 0:03:30]} 16. Bxg5 {[%emt 0:06:40]} Qxg5 {[%emt 0:00:03]} 17. Qxd4 {[%emt 0:00:08]} Nb6 {[%emt 0:02:34]} 18. Rac1 {[%emt 0:10:38]} Rfe8 {[%emt 0:07:13]} 19. Ne2 {[%emt 0:08:03]} Nc4 {[%emt 0:04:57]} 20. b3 {[%emt 0:01:18]} c5 {[%emt 0:00:29]} 21. Qd1 {[%emt 0:02:41]} Nxa3 {[%emt 0:01:21]} 22. Qxd6 {[%emt 0:02:45]} c4 {[%emt 0:02:48]} 23. Nd4 {[%emt 0:26:22]} cxb3 {[%emt 0:07:18]} 24. Nxb3 {[%emt 0:02:03]} Nc4 {[%emt 0:00:31]} 25. Qd5 {[%emt 0:01:05]} Qf4 {[%emt 0:01:22]} 26. Ra1 {[%emt 0:04:24]} Rad8 {[%emt 0:05:01]} 27. Qf5 {[%emt 0:01:29]} Qh6 {[%emt 0:03:42]} 28. Rfd1 {[%emt 0:02:45]} Qb6 {[%emt 0:09:13]} 29. Nc5 {[%emt 0:02:39]} a5 {[%emt 0:03:34]} 30. Nd7 {[%emt 0:01:18]} Qc7 {[%emt 0:00:02]} 31. Qxb5 {[%emt 0:00:45]} axb4 {[%emt 0:01:40]} 32. Qxb4 {[%emt 0:01:21]} Ne3 {[%emt 0:01:08]} 33. Qd6 {[%emt 0:01:21]} Qxd6 {[%emt 0:02:21]} 34. Rxd6 {[%emt 0:00:04]} Nc4 {[%emt 0:00:04]} 35. Rd4 Nb6 36. Rad1 Nc4 37. Rd5 Ra8 1/2-1/2

[Event "AZE-ch Men 2019"]
[Site "Baku"]
[Date "2019.01.17"]
[Round "2"]
[White "Zeynalov, Farid"]
[Black "Gadimbayli, Abdulla"]
[Result "1-0"]
[ECO "A40"]
[WhiteElo "2344"]
[BlackElo "2409"]
[Annotator "NA"]
[PlyCount "123"]
[EventDate "2019.01.16"]
[EventType "swiss"]
[EventCountry "AZE"]
[SourceTitle "playchess.com"]
[Source "ChessBase"]
[SourceQuality "1"]
[TimeControl "40/5400+30:1800+30"]

1. d4 {[%emt 0:00:00]} e6 {[%emt 0:00:00]} 2. c4 {[%emt 0:00:00]} b6 {[%emt 0:00:10]} 3. e4 {[%emt 0:00:29]} Bb7 {[%emt 0:00:05]} 4. Bd3 {[%emt 0:00:05]} Bb4+ {[%emt 0:00:05]} 5. Kf1 {[%emt 0:00:03] A40: Unusual replies to 1 d4} (5. Bd2 Bxd2+ 6. Qxd2 f5 7. Nc3 Nf6 8. f3 Nc6 9. Nge2 fxe4 10. fxe4 e5 11. d5 Ne7 12. O-O O-O 13. Ng3 {0-1 (31) Riazantsev,A (2650)-Alekseev,E (2616) Riadh 2017}) 5... Be7 {[%emt 0:00:06]} 6. Nc3 {[%emt 0:00:07]} d6 {[%emt 0:00:46]} 7. Nf3 {[%emt 0:00:24]} Nd7 {[%emt 0:00:06]} 8. g3 {[%emt 0:00:28]} Bf6 {[%emt 0:14:11]} 9. Kg2 {[%emt 0:00:32]} Ne7 {[%emt 0:03:16] LiveBook: 8 Games} 10. h4 {[%emt 0:01:03]} a6 {[%emt 0:14:39]} 11. a3 $146 {[%emt 0:02:45]} ({Predecessor:} 11. Bg5 c5 12. d5 h6 {1-0 (46) Gunina,V (2528)-Efroimski,M (2313) Batumi 2018}) 11... c5 {[%emt 0:01:29]} 12. d5 $1 {[%emt 0:04:03]} Ne5 {[%emt 0:09:49]} 13. Be2 {[%emt 0:06:57]} Nxf3 {[%emt 0:05:10]} 14. Bxf3 {[%emt 0:00:13]} Bd4 {[%emt 0:00:16]} 15. Ne2 {[%emt 0:09:45]} e5 {[%emt 0:01:11]} 16. g4 {[%emt 0:03:25]} b5 {[%emt 0:18:17]} 17. h5 {[%emt 0:08:13]} h6 {[%emt 0:04:17]} 18. Nxd4 {[%emt 0:11:52]} cxd4 {[%emt 0:08:10]} 19. b3 {[%emt 0:00:28]} f6 {[%emt 0:05:05]} 20. Be2 {[%emt 0:06:33]} Qd7 {[%emt 0:05:11]} 21. Bd2 {[%emt 0:09:12]} O-O {[%emt 0:00:25]} 22. Ba5 {[%emt 0:00:41]} Rab8 {[%emt 0:03:11]} 23. Rc1 {[%emt 0:01:29]} Rfc8 {[%emt 0:03:30]} 24. f3 {[%emt 0:05:35]} bxc4 {[%emt 0:01:55]} 25. Bxc4 {[%emt 0:03:51]} Ra8 {[%emt 0:00:18]} 26. a4 {[%emt 0:00:28]} Rf8 {[%emt 0:00:38]} 27. Qe2 {[%emt 0:03:17]} Kh8 {[%emt 0:00:27]} 28. Rc2 {[%emt 0:03:42]} f5 {[%emt 0:00:41]} 29. gxf5 {[%emt 0:00:13]} Nxf5 {[%emt 0:00:26]} 30. exf5 {[%emt 0:00:03]} Rxf5 {[%emt 0:00:03]} 31. Rh3 {[%emt 0:01:40]} Raf8 {[%emt 0:00:41]} 32. Rg3 {[%emt 0:04:52]} Rxh5 {[%emt 0:00:43]} 33. Bd2 $2 {[%emt 0:07:40]} (33. Qe4 $18 {and the rest is easy.}) 33... Qe7 {[%emt 0:00:32] [#]} (33... Rh4 $16) 34. Qe4 $1 {[%emt 0:02:42]} Rh4 {[%emt 0:00:38]} 35. Rg4 {[%emt 0:00:48]} Rxg4+ {[%emt 0:00:20]} 36. fxg4 ({Weaker is} 36. Qxg4 Bc8 $14) 36... Qd7 37. Kg3 {[%emt 0:01:42]} Qf7 {[%emt 0:01:10]} 38. Be1 {[%emt 0:00:58]} Qf4+ {[%emt 0:00:23]} 39. Qxf4 {[%emt 0:00:04]} Rxf4 {[%emt 0:00:18]} 40. Bd3 {[%emt 0:00:00]} g5 {[%emt 0:00:00]} 41. Bd2 {[%emt 0:03:33]} Bxd5 {[%emt 0:02:13]} 42. Bxf4 {[%emt 0:02:17]} gxf4+ {[%emt 0:01:34]} 43. Kf2 {[%emt 0:00:26]} Bxb3 {[%emt 0:07:41]} 44. Rc6 {[%emt 0:08:47]} d5 {[%emt 0:00:32]} 45. Rxh6+ {[%emt 0:00:21]} Kg7 {[%emt 0:02:05]} 46. Re6 {[%emt 0:00:26]} e4 {[%emt 0:00:27]} 47. Bxe4 {[%emt 0:00:03]} dxe4 {[%emt 0:00:42]} 48. Rxe4 {[%emt 0:00:02]} Bxa4 $18 {[%emt 0:09:27]} 49. Rxd4 {[%emt 0:00:08]} Bb3 {[%emt 0:00:06]} 50. Rd3 {[%emt 0:02:59]} Bc2 {[%emt 0:01:49]} 51. Ra3 {[%emt 0:00:52]} Be4 {[%emt 0:04:13]} 52. Ra4 {[%emt 0:00:24]} Bd3 {[%emt 0:01:25]} 53. Kf3 {[%emt 0:01:36]} Bb5 {[%emt 0:00:02]} 54. Ra5 {[%emt 0:01:02]} Kf6 {[%emt 0:00:05]} 55. Kxf4 {[%emt 0:00:03]} Ke6 {[%emt 0:00:26]} 56. Kg5 {[%emt 0:01:09]} Be2 {[%emt 0:00:27]} 57. Ra2 {[%emt 0:00:18]} Bc4 {[%emt 0:00:02]} 58. Rc2 {[%emt 0:01:08]} Bd5 {[%emt 0:01:05]} 59. Rc5 {[%emt 0:01:10]} Bf3 {[%emt 0:00:02]} 60. Kf4 {[%emt 0:00:40]} Bb7 {[%emt 0:00:02]} 61. g5 {[%emt 0:00:18]} Bg2 {[%emt 0:00:19]} 62. g6 {[%emt 0:00:57] Kd5 Ke4+} 1-0